[Event "*** SCC Grand Prix: Titled Tuesday Blitz"]
[Site "Chess.com"]
[Date "2020.06.09"]
[Round "2"]
[White "RobertoJBM"]
[Black "TERMINATOR_PC"]
[Result "1-0"]
[WhiteElo "2728"]
[BlackElo "2478"]
[TimeControl "180+1"]
[EndTime "9:18:43 PDT"]
[Termination "RobertoJBM won on time"]

1. d4 {[%clk 0:03:00.9]} 1... Nf6 {[%clk 0:02:58.6]} 2. c4 {[%clk 0:03:00.7]}
2... g6 {[%clk 0:02:59]} 3. Nc3 {[%clk 0:03:00.6]} 3... Bg7 {[%clk 0:02:59.6]}
4. e4 {[%clk 0:03:00.7]} 4... d6 {[%clk 0:03:00.2]} 5. f3 {[%clk 0:03:01.1]}
5... O-O {[%clk 0:02:59.7]} 6. Be3 {[%clk 0:03:01.6]} 6... a6 {[%clk 0:02:59.5]}
7. Qd2 {[%clk 0:03:01.2]} 7... c6 {[%clk 0:02:59.5]} 8. Nge2 {[%clk 0:03:01.2]}
8... b5 {[%clk 0:02:59.9]} 9. b3 {[%clk 0:03:01.4]} 9... Nbd7 {[%clk 0:02:57.1]}
10. Rc1 {[%clk 0:02:58.6]} 10... e5 {[%clk 0:02:44]} 11. d5 {[%clk 0:02:57.6]}
11... bxc4 {[%clk 0:02:23.8]} 12. bxc4 {[%clk 0:02:53.2]} 12... c5 {[%clk
0:02:21.9]} 13. Rb1 {[%clk 0:02:51.4]} 13... Ne8 {[%clk 0:02:14.4]} 14. Nc1
{[%clk 0:02:49.8]} 14... f5 {[%clk 0:02:13.3]} 15. Bd3 {[%clk 0:02:48]} 15...
Ndf6 {[%clk 0:02:00.1]} 16. O-O {[%clk 0:02:44.9]} 16... f4 {[%clk 0:01:57.9]}
17. Bf2 {[%clk 0:02:43.6]} 17... g5 {[%clk 0:01:58.8]} 18. Na4 {[%clk 0:02:39]}
18... g4 {[%clk 0:01:48.5]} 19. Nb6 {[%clk 0:02:38.9]} 19... g3 {[%clk
0:01:45.3]} 20. hxg3 {[%clk 0:02:36.3]} 20... fxg3 {[%clk 0:01:46.2]} 21. Bxg3
{[%clk 0:02:36.9]} 21... Nh5 {[%clk 0:01:45.9]} 22. Bh2 {[%clk 0:02:23.8]} 22...
Ra7 {[%clk 0:01:41.1]} 23. Ne2 {[%clk 0:02:17.3]} 23... Bf6 {[%clk 0:01:11.4]}
24. Nxc8 {[%clk 0:02:06.7]} 24... Qxc8 {[%clk 0:01:10.9]} 25. g4 {[%clk
0:02:05.1]} 25... Rg7 {[%clk 0:00:56.2]} 26. Qh6 {[%clk 0:01:47.9]} 26... Nf4
{[%clk 0:00:51.8]} 27. Nxf4 {[%clk 0:01:47.4]} 27... exf4 {[%clk 0:00:52.7]} 28.
Bxf4 {[%clk 0:01:34.6]} 28... Bd4+ {[%clk 0:00:47.3]} 29. Kh1 {[%clk 0:01:32]}
29... Rf6 {[%clk 0:00:41.2]} 30. Qh2 {[%clk 0:01:30.8]} 30... Rgf7 {[%clk
0:00:27.3]} 31. Bg3 {[%clk 0:00:49.9]} 31... Rxf3 {[%clk 0:00:23.7]} 32. Rxf3
{[%clk 0:00:50.8]} 32... Rxf3 {[%clk 0:00:24.6]} 33. Be2 {[%clk 0:00:51]} 33...
Re3 {[%clk 0:00:08.8]} 34. Rf1 {[%clk 0:00:42]} 34... Rxe4 {[%clk 0:00:06.7]}
35. Bd3 {[%clk 0:00:41.7]} 35... Qxg4 {[%clk 0:00:04.7]} 36. Bxe4 {[%clk
0:00:41.4]} 36... Qxe4+ {[%clk 0:00:05.6]} 37. Qg2 {[%clk 0:00:41.6]} 37...
Qxg2+ {[%clk 0:00:05.1]} 38. Kxg2 {[%clk 0:00:42.5]} 38... Kg7 {[%clk
0:00:04.6]} 39. Bh4 {[%clk 0:00:42.6]} 39... Nf6 {[%clk 0:00:03.6]} 40. Bxf6+
{[%clk 0:00:42.5]} 40... Bxf6 {[%clk 0:00:03.6]} 41. Kf3 {[%clk 0:00:43.4]}
41... a5 {[%clk 0:00:03.2]} 42. a4 {[%clk 0:00:42.6]} 42... Kg6 {[%clk
0:00:02.2]} 43. Rb1 {[%clk 0:00:36.9]} 43... h5 {[%clk 0:00:02.1]} 44. Rb6
{[%clk 0:00:32.1]} 44... Be5 {[%clk 0:00:02.5]} 45. Ra6 {[%clk 0:00:32.2]} 45...
Kf5 {[%clk 0:00:02.5]} 46. Rxa5 {[%clk 0:00:32.6]} 46... h4 {[%clk 0:00:03.1]}
47. Ra7 {[%clk 0:00:32]} 47... h3 {[%clk 0:00:03.4]} 48. Rh7 {[%clk 0:00:31.1]}
48... h2 {[%clk 0:00:03.7]} 49. a5 {[%clk 0:00:31.3]} 49... Kg6 {[%clk 0:00:04]}
50. Rh3 {[%clk 0:00:30.9]} 1-0

[Event "*** SCC Grand Prix: Titled Tuesday Blitz"]
[Site "Chess.com"]
[Date "2020.06.09"]
[Round "2"]
[White "MomchilPetkov"]
[Black "Sanan_Sjugirov"]
[Result "0-1"]
[WhiteElo "2535"]
[BlackElo "2787"]
[TimeControl "180+1"]
[EndTime "9:18:44 PDT"]
[Termination "Sanan_Sjugirov won by checkmate"]

1. d4 {[%clk 0:03:00.9]} 1... Nf6 {[%clk 0:02:58.8]} 2. c4 {[%clk 0:03:01]} 2...
g6 {[%clk 0:02:58.8]} 3. Nc3 {[%clk 0:03:00.8]} 3... Bg7 {[%clk 0:02:58.7]} 4.
e4 {[%clk 0:03:00.3]} 4... d6 {[%clk 0:02:58.9]} 5. h3 {[%clk 0:03:00.3]} 5...
O-O {[%clk 0:02:57.3]} 6. Be3 {[%clk 0:03:00.2]} 6... Na6 {[%clk 0:02:55.2]} 7.
g4 {[%clk 0:02:55.3]} 7... c5 {[%clk 0:02:54.4]} 8. d5 {[%clk 0:02:54.2]} 8...
e6 {[%clk 0:02:41.5]} 9. Qd2 {[%clk 0:02:48.5]} 9... exd5 {[%clk 0:02:34.5]} 10.
cxd5 {[%clk 0:02:40.2]} 10... Nc7 {[%clk 0:02:32.1]} 11. f3 {[%clk 0:02:32.9]}
11... Rb8 {[%clk 0:02:25.9]} 12. a4 {[%clk 0:02:32.3]} 12... a6 {[%clk
0:02:23.3]} 13. a5 {[%clk 0:02:29.8]} 13... b5 {[%clk 0:02:18.7]} 14. axb6
{[%clk 0:02:29.7]} 14... Nb5 {[%clk 0:02:04]} 15. Na4 {[%clk 0:01:38]} 15... Nd7
{[%clk 0:01:59.4]} 16. h4 {[%clk 0:01:20.6]} 16... Nxb6 {[%clk 0:01:58]} 17.
Bxb5 {[%clk 0:01:20.5]} 17... Nxa4 {[%clk 0:01:08.3]} 18. Bxa4 {[%clk
0:01:12.2]} 18... Rxb2 {[%clk 0:01:07.9]} 19. Qd1 {[%clk 0:01:12]} 19... a5
{[%clk 0:00:30.1]} 20. Ne2 {[%clk 0:01:02.1]} 20... Ba6 {[%clk 0:00:27.9]} 21.
Rh2 {[%clk 0:00:46.3]} 21... Qf6 {[%clk 0:00:26.1]} 22. Rb1 {[%clk 0:00:26.7]}
22... Rxb1 {[%clk 0:00:13.2]} 23. Qxb1 {[%clk 0:00:26.9]} 23... Qxf3 {[%clk
0:00:13.9]} 24. Qc1 {[%clk 0:00:19.8]} 24... Be5 {[%clk 0:00:08.8]} 25. Rf2
{[%clk 0:00:19.2]} 25... Qxe4 {[%clk 0:00:06.1]} 26. Bc2 {[%clk 0:00:16.7]}
26... Qxg4 {[%clk 0:00:06.1]} 27. h5 {[%clk 0:00:13.9]} 27... Re8 {[%clk
0:00:05.8]} 28. hxg6 {[%clk 0:00:13.3]} 28... hxg6 {[%clk 0:00:06.7]} 29. Qd2
{[%clk 0:00:07.9]} 29... a4 {[%clk 0:00:04.7]} 30. Bb1 {[%clk 0:00:07.3]} 30...
a3 {[%clk 0:00:04.8]} 31. Kd1 {[%clk 0:00:05.5]} 31... Bc4 {[%clk 0:00:04.7]}
32. Qc2 {[%clk 0:00:04.2]} 32... Rb8 {[%clk 0:00:04]} 33. Ba2 {[%clk 0:00:03]}
33... Bxa2 {[%clk 0:00:04]} 34. Qxa2 {[%clk 0:00:03.9]} 34... Qa4+ {[%clk
0:00:04]} 35. Ke1 {[%clk 0:00:03.7]} 35... Rb2 {[%clk 0:00:04.6]} 36. Qa1 {[%clk
0:00:03.2]} 36... Rxe2+ {[%clk 0:00:04.7]} 37. Kxe2 {[%clk 0:00:03.7]} 37...
Bxa1 {[%clk 0:00:05.5]} 38. Kf3 {[%clk 0:00:04.5]} 38... Qc4 {[%clk 0:00:05.5]}
39. Bf4 {[%clk 0:00:05.4]} 39... Bd4 {[%clk 0:00:05.5]} 40. Re2 {[%clk
0:00:06.3]} 40... Qxe2+ {[%clk 0:00:05.4]} 41. Kxe2 {[%clk 0:00:06.4]} 41... a2
{[%clk 0:00:06.3]} 42. Kd3 {[%clk 0:00:06.9]} 42... a1=Q {[%clk 0:00:06.6]} 43.
Bxd6 {[%clk 0:00:07.8]} 43... Qc3+ {[%clk 0:00:06.8]} 44. Ke4 {[%clk 0:00:08.3]}
44... Qe3# {[%clk 0:00:07]} 0-1

[Event "*** SCC Grand Prix: Titled Tuesday Blitz"]
[Site "Chess.com"]
[Date "2020.06.09"]
[Round "2"]
[White "ketster"]
[Black "Twitch_ElhamBlitz05"]
[Result "0-1"]
[WhiteElo "2448"]
[BlackElo "2747"]
[TimeControl "180+1"]
[EndTime "9:18:45 PDT"]
[Termination "Twitch_ElhamBlitz05 won on time"]

1. d4 {[%clk 0:03:00.9]} 1... Nf6 {[%clk 0:02:59.2]} 2. c4 {[%clk 0:03:00.7]}
2... e6 {[%clk 0:03:00.1]} 3. g3 {[%clk 0:02:59.7]} 3... d5 {[%clk 0:03:01]} 4.
Nf3 {[%clk 0:02:56.4]} 4... dxc4 {[%clk 0:03:01.9]} 5. Bg2 {[%clk 0:02:56.2]}
5... c5 {[%clk 0:03:02.1]} 6. O-O {[%clk 0:02:52.6]} 6... Nc6 {[%clk 0:03:02]}
7. dxc5 {[%clk 0:02:52.5]} 7... Qxd1 {[%clk 0:03:02.9]} 8. Rxd1 {[%clk
0:02:52.3]} 8... Bxc5 {[%clk 0:03:03.8]} 9. Nbd2 {[%clk 0:02:52]} 9... c3 {[%clk
0:03:04.5]} 10. bxc3 {[%clk 0:02:51.9]} 10... O-O {[%clk 0:03:05]} 11. Nb3
{[%clk 0:02:52.1]} 11... Be7 {[%clk 0:03:05.6]} 12. c4 {[%clk 0:02:50.2]} 12...
Bd7 {[%clk 0:03:05.6]} 13. Rb1 {[%clk 0:02:47.8]} 13... Rac8 {[%clk 0:03:04.2]}
14. Bb2 {[%clk 0:02:46.5]} 14... Rfd8 {[%clk 0:03:00.7]} 15. c5 {[%clk
0:02:40.4]} 15... Nd5 {[%clk 0:02:51]} 16. e4 {[%clk 0:02:33.5]} 16... Ndb4
{[%clk 0:02:48.5]} 17. a3 {[%clk 0:02:21]} 17... Na6 {[%clk 0:02:48.3]} 18. Rdc1
{[%clk 0:02:15.8]} 18... f6 {[%clk 0:02:37.4]} 19. Bf1 {[%clk 0:01:56.5]} 19...
Be8 {[%clk 0:02:27.9]} 20. Bxa6 {[%clk 0:01:31.2]} 20... bxa6 {[%clk 0:02:28.8]}
21. Nbd4 {[%clk 0:01:30.9]} 21... Nxd4 {[%clk 0:02:25.2]} 22. Nxd4 {[%clk
0:01:29.4]} 22... Bf7 {[%clk 0:02:25.5]} 23. c6 {[%clk 0:01:27]} 23... Bd6
{[%clk 0:01:49]} 24. a4 {[%clk 0:01:11.3]} 24... Be5 {[%clk 0:01:47.6]} 25. Nf3
{[%clk 0:01:02.7]} 25... Bc7 {[%clk 0:01:40]} 26. Rd1 {[%clk 0:00:40.1]} 26...
e5 {[%clk 0:01:36.2]} 27. Nh4 {[%clk 0:00:33.6]} 27... g6 {[%clk 0:01:20.5]} 28.
f4 {[%clk 0:00:29.3]} 28... Ba2 {[%clk 0:01:15.7]} 29. Ra1 {[%clk 0:00:28.1]}
29... Bb3 {[%clk 0:01:15.5]} 30. Rxd8+ {[%clk 0:00:22.5]} 30... Rxd8 {[%clk
0:01:16.4]} 31. fxe5 {[%clk 0:00:22.5]} 31... Rd2 {[%clk 0:01:08.3]} 32. Bc3
{[%clk 0:00:19.9]} 32... Rc2 {[%clk 0:01:08.2]} 33. Bd4 {[%clk 0:00:16.9]} 33...
fxe5 {[%clk 0:01:07.4]} 34. Be3 {[%clk 0:00:16.6]} 34... Rxc6 {[%clk 0:01:05.6]}
35. Bxa7 {[%clk 0:00:15.6]} 35... Rc4 {[%clk 0:01:05.5]} 36. Re1 {[%clk
0:00:14.3]} 36... Bxa4 {[%clk 0:01:03.3]} 37. Nf3 {[%clk 0:00:14.5]} 37... Bc6
{[%clk 0:01:02.6]} 38. Ng5 {[%clk 0:00:13]} 38... h6 {[%clk 0:00:54.7]} 39. Ne6
{[%clk 0:00:13]} 39... Bd6 {[%clk 0:00:55.3]} 40. Rd1 {[%clk 0:00:13.1]} 40...
Be7 {[%clk 0:00:52.8]} 41. Bb8 {[%clk 0:00:08.2]} 41... Rxe4 {[%clk 0:00:50.6]}
42. Nd8 {[%clk 0:00:07.4]} 42... Bb5 {[%clk 0:00:37.1]} 43. Nb7 {[%clk
0:00:07.4]} 43... Rd4 {[%clk 0:00:34.4]} 44. Re1 {[%clk 0:00:05.9]} 44... e4
{[%clk 0:00:34.9]} 45. Bf4 {[%clk 0:00:03.6]} 45... Rd7 {[%clk 0:00:33.5]} 46.
Rxe4 {[%clk 0:00:03]} 46... Rxb7 {[%clk 0:00:32.8]} 47. Bxh6 {[%clk 0:00:03.3]}
47... Bc5+ {[%clk 0:00:33]} 48. Kg2 {[%clk 0:00:01.3]} 48... Bc6 {[%clk
0:00:33]} 49. Kf3 {[%clk 0:00:01.6]} 49... Rb3+ {[%clk 0:00:32.5]} 50. Kf4
{[%clk 0:00:01.4]} 50... Bd6+ {[%clk 0:00:33.1]} 0-1

[Event "*** SCC Grand Prix: Titled Tuesday Blitz"]
[Site "Chess.com"]
[Date "2020.06.09"]
[Round "2"]
[White "Rinas_Oleg"]
[Black "louis198"]
[Result "0-1"]
[WhiteElo "2221"]
[BlackElo "2447"]
[TimeControl "180+1"]
[EndTime "9:18:45 PDT"]
[Termination "louis198 won on time"]

1. e4 {[%clk 0:03:00.9]} 1... e6 {[%clk 0:02:59.6]} 2. d4 {[%clk 0:02:58.2]}
2... d5 {[%clk 0:02:59.3]} 3. Nc3 {[%clk 0:02:57.1]} 3... dxe4 {[%clk
0:02:56.2]} 4. Nxe4 {[%clk 0:02:56]} 4... Bd7 {[%clk 0:02:53.6]} 5. Nf3 {[%clk
0:02:54.9]} 5... Bc6 {[%clk 0:02:49.4]} 6. Bd3 {[%clk 0:02:54.5]} 6... Nd7
{[%clk 0:02:48.1]} 7. Bg5 {[%clk 0:02:46]} 7... Be7 {[%clk 0:02:43.9]} 8. Bxe7
{[%clk 0:02:44.1]} 8... Qxe7 {[%clk 0:02:35.3]} 9. Qe2 {[%clk 0:02:42.4]} 9...
Ngf6 {[%clk 0:02:30]} 10. O-O-O {[%clk 0:02:39.6]} 10... O-O-O {[%clk
0:02:28.9]} 11. Kb1 {[%clk 0:02:32.5]} 11... Nxe4 {[%clk 0:02:24]} 12. Bxe4
{[%clk 0:02:31.5]} 12... Bxe4 {[%clk 0:02:24.7]} 13. Qxe4 {[%clk 0:02:31.1]}
13... Nf6 {[%clk 0:02:25.6]} 14. Qe2 {[%clk 0:02:23.8]} 14... Rd6 {[%clk
0:02:21.9]} 15. Ne5 {[%clk 0:02:22.2]} 15... Rhd8 {[%clk 0:02:20.4]} 16. c3
{[%clk 0:02:21.1]} 16... Nd7 {[%clk 0:02:16.8]} 17. Nxd7 {[%clk 0:02:19.3]}
17... Qxd7 {[%clk 0:02:15.6]} 18. Qe5 {[%clk 0:02:15.9]} 18... f6 {[%clk
0:02:08.9]} 19. Qe4 {[%clk 0:02:10.4]} 19... e5 {[%clk 0:02:06.7]} 20. Qxh7
{[%clk 0:02:06.6]} 20... exd4 {[%clk 0:02:05.3]} 21. cxd4 {[%clk 0:01:58]} 21...
Rxd4 {[%clk 0:01:58.9]} 22. Rxd4 {[%clk 0:01:50.8]} 22... Qxd4 {[%clk
0:01:59.8]} 23. Qf5+ {[%clk 0:01:41.6]} 23... Kb8 {[%clk 0:01:57.6]} 24. Rc1
{[%clk 0:01:37.7]} 24... b6 {[%clk 0:01:49.2]} 25. g3 {[%clk 0:01:32.6]} 25...
Rd5 {[%clk 0:01:33.4]} 26. Qf3 {[%clk 0:01:23.9]} 26... Rb5 {[%clk 0:01:25.7]}
27. Qc3 {[%clk 0:01:21]} 27... Qe4+ {[%clk 0:01:17.9]} 28. Qc2 {[%clk
0:01:17.8]} 28... Qe5 {[%clk 0:01:15.6]} 29. h4 {[%clk 0:01:13.5]} 29... Rc5
{[%clk 0:01:10.4]} 30. Qd2 {[%clk 0:00:46.3]} 30... Qf5+ {[%clk 0:01:07.9]} 31.
Rc2 {[%clk 0:00:35.2]} 31... Rd5 {[%clk 0:01:05.3]} 32. Qe2 {[%clk 0:00:30]}
32... Qd7 {[%clk 0:00:50.3]} 33. a3 {[%clk 0:00:22.3]} 33... Rd1+ {[%clk
0:00:48.5]} 34. Rc1 {[%clk 0:00:19.8]} 34... Rd2 {[%clk 0:00:47.2]} 35. Qe3
{[%clk 0:00:15.8]} 35... Qf5+ {[%clk 0:00:44.3]} 36. Ka2 {[%clk 0:00:12.9]}
36... Rxf2 {[%clk 0:00:30.3]} 37. Qe8+ {[%clk 0:00:12.3]} 37... Qc8 {[%clk
0:00:29.6]} 38. Qf7 {[%clk 0:00:09.7]} 38... f5 {[%clk 0:00:20.5]} 39. Qxg7
{[%clk 0:00:08.9]} 39... Qe6+ {[%clk 0:00:18.6]} 40. Ka1 {[%clk 0:00:07.4]}
40... Qd6 {[%clk 0:00:18.5]} 41. Qg8+ {[%clk 0:00:05.9]} 41... Kb7 {[%clk
0:00:18.4]} 42. h5 {[%clk 0:00:04.8]} 42... Qd2 {[%clk 0:00:15.7]} 43. Rb1
{[%clk 0:00:03.1]} 43... Rh2 {[%clk 0:00:15.9]} 0-1

[Event "*** SCC Grand Prix: Titled Tuesday Blitz"]
[Site "Chess.com"]
[Date "2020.06.09"]
[Round "2"]
[White "dretch"]
[Black "Berardino"]
[Result "1-0"]
[WhiteElo "2776"]
[BlackElo "2523"]
[TimeControl "180+1"]
[EndTime "9:18:46 PDT"]
[Termination "dretch won on time"]

1. d4 {[%clk 0:02:53.3]} 1... Nf6 {[%clk 0:02:59.9]} 2. c4 {[%clk 0:02:53.3]}
2... g6 {[%clk 0:02:59.1]} 3. Nc3 {[%clk 0:02:53.8]} 3... Bg7 {[%clk 0:02:58.9]}
4. e4 {[%clk 0:02:54.3]} 4... O-O {[%clk 0:02:59.2]} 5. Nf3 {[%clk 0:02:55]}
5... d6 {[%clk 0:02:59.7]} 6. h3 {[%clk 0:02:55.7]} 6... c5 {[%clk 0:02:52.2]}
7. d5 {[%clk 0:02:55.5]} 7... e6 {[%clk 0:02:52.5]} 8. Bd3 {[%clk 0:02:55.5]}
8... a6 {[%clk 0:02:52.4]} 9. Bg5 {[%clk 0:02:51.1]} 9... exd5 {[%clk
0:02:48.6]} 10. Nxd5 {[%clk 0:02:47.8]} 10... Be6 {[%clk 0:02:46]} 11. O-O
{[%clk 0:02:38.7]} 11... Bxd5 {[%clk 0:02:40.3]} 12. cxd5 {[%clk 0:02:31.2]}
12... Nbd7 {[%clk 0:02:35.6]} 13. a4 {[%clk 0:02:27.5]} 13... Re8 {[%clk
0:02:28.9]} 14. Re1 {[%clk 0:02:25.6]} 14... Rb8 {[%clk 0:02:23.8]} 15. a5
{[%clk 0:02:20.4]} 15... Qc7 {[%clk 0:02:16.9]} 16. Nd2 {[%clk 0:02:09.4]} 16...
Ne5 {[%clk 0:01:59.8]} 17. Bf1 {[%clk 0:02:06.8]} 17... b5 {[%clk 0:01:58.8]}
18. axb6 {[%clk 0:02:05.5]} 18... Rxb6 {[%clk 0:01:58.7]} 19. b3 {[%clk
0:02:02.7]} 19... h6 {[%clk 0:01:34.2]} 20. Bf4 {[%clk 0:01:53.5]} 20... Nfd7
{[%clk 0:01:01.7]} 21. Bxa6 {[%clk 0:01:42]} 21... Ra8 {[%clk 0:00:59]} 22. Qe2
{[%clk 0:01:32.1]} 22... g5 {[%clk 0:00:52.9]} 23. Bxe5 {[%clk 0:01:18.9]} 23...
Bxe5 {[%clk 0:00:49.2]} 24. Ra4 {[%clk 0:01:17.9]} 24... Bc3 {[%clk 0:00:31.1]}
25. Bb5 {[%clk 0:00:46.5]} 25... Rxa4 {[%clk 0:00:29.8]} 26. bxa4 {[%clk
0:00:45.3]} 26... Ne5 {[%clk 0:00:29.2]} 27. Rc1 {[%clk 0:00:39.9]} 27... Bd4
{[%clk 0:00:22.7]} 28. Nb3 {[%clk 0:00:37.2]} 28... Qa7 {[%clk 0:00:20.6]} 29.
Qd2 {[%clk 0:00:12.8]} 29... Rb8 {[%clk 0:00:19.6]} 30. Rd1 {[%clk 0:00:11.7]}
30... Rc8 {[%clk 0:00:12.9]} 31. Nxd4 {[%clk 0:00:11.8]} 31... cxd4 {[%clk
0:00:13.8]} 32. Qxd4 {[%clk 0:00:12.5]} 32... Qa5 {[%clk 0:00:13.6]} 33. Kh1
{[%clk 0:00:11.1]} 33... Rc3 {[%clk 0:00:13]} 34. Rf1 {[%clk 0:00:10.5]} 34...
Ra3 {[%clk 0:00:11.9]} 35. Qd1 {[%clk 0:00:09.8]} 35... Qc3 {[%clk 0:00:10.7]}
36. Qe1 {[%clk 0:00:09.8]} 36... Qc2 {[%clk 0:00:09.1]} 37. Qc1 {[%clk
0:00:08.5]} 37... Qa2 {[%clk 0:00:07.5]} 38. Qb1 {[%clk 0:00:08.2]} 38... Qd2
{[%clk 0:00:06.4]} 39. Kg1 {[%clk 0:00:08.5]} 39... Kg7 {[%clk 0:00:05.1]} 40.
Qc1 {[%clk 0:00:08.1]} 40... Qb4 {[%clk 0:00:03.8]} 41. Qc8 {[%clk 0:00:07.8]}
41... Ra2 {[%clk 0:00:03.1]} 42. Qf5 {[%clk 0:00:07.8]} 42... Qd4 {[%clk
0:00:02.8]} 43. h4 {[%clk 0:00:08]} 43... g4 {[%clk 0:00:01.6]} 44. Qf4 {[%clk
0:00:07.4]} 44... h5 {[%clk 0:00:01.2]} 45. Qg5+ {[%clk 0:00:07.4]} 1-0

[Event "*** SCC Grand Prix: Titled Tuesday Blitz"]
[Site "Chess.com"]
[Date "2020.06.09"]
[Round "2"]
[White "MarceloPlaya"]
[Black "Shuvalov"]
[Result "0-1"]
[WhiteElo "2233"]
[BlackElo "2452"]
[TimeControl "180+1"]
[EndTime "9:18:47 PDT"]
[Termination "Shuvalov won on time"]

1. e4 {[%clk 0:03:00.9]} 1... e6 {[%clk 0:02:57.7]} 2. d4 {[%clk 0:02:59.8]}
2... d5 {[%clk 0:02:57.5]} 3. Nc3 {[%clk 0:02:58.9]} 3... Bb4 {[%clk 0:02:57.1]}
4. e5 {[%clk 0:02:58.3]} 4... c5 {[%clk 0:02:56.8]} 5. a3 {[%clk 0:02:57.1]}
5... Bxc3+ {[%clk 0:02:56.6]} 6. bxc3 {[%clk 0:02:56.9]} 6... Ne7 {[%clk
0:02:57.2]} 7. Qg4 {[%clk 0:02:56.1]} 7... cxd4 {[%clk 0:02:56.4]} 8. Bd3 {[%clk
0:02:52.6]} 8... Qa5 {[%clk 0:02:54.1]} 9. Ne2 {[%clk 0:02:47.7]} 9... Nd7
{[%clk 0:02:48.5]} 10. Bf4 {[%clk 0:02:38.8]} 10... Ng6 {[%clk 0:02:45.7]} 11.
O-O {[%clk 0:02:25.7]} 11... dxc3 {[%clk 0:02:30.6]} 12. Bg3 {[%clk 0:02:19]}
12... O-O {[%clk 0:02:27.2]} 13. h4 {[%clk 0:02:15.6]} 13... f5 {[%clk
0:02:25.9]} 14. exf6 {[%clk 0:02:05]} 14... Nxf6 {[%clk 0:02:23.8]} 15. Qg5
{[%clk 0:02:04.8]} 15... Nh8 {[%clk 0:02:07.8]} 16. h5 {[%clk 0:01:54.2]} 16...
Nf7 {[%clk 0:02:07.3]} 17. Qh4 {[%clk 0:01:39]} 17... e5 {[%clk 0:02:01.9]} 18.
f3 {[%clk 0:01:25.8]} 18... e4 {[%clk 0:01:39.8]} 19. fxe4 {[%clk 0:01:23]}
19... dxe4 {[%clk 0:01:37.9]} 20. Bxe4 {[%clk 0:01:09.7]} 20... Nxe4 {[%clk
0:01:23.9]} 21. Qxe4 {[%clk 0:01:08.5]} 21... Qxh5 {[%clk 0:01:23.8]} 22. Nf4
{[%clk 0:00:51.3]} 22... Qg4 {[%clk 0:01:16.3]} 23. Rf3 {[%clk 0:00:34.1]} 23...
Bd7 {[%clk 0:00:51.4]} 24. Qxb7 {[%clk 0:00:29.5]} 24... Rac8 {[%clk 0:00:50.5]}
25. Qxa7 {[%clk 0:00:21.8]} 25... Bc6 {[%clk 0:00:49.6]} 26. Rd3 {[%clk
0:00:16.5]} 26... Ng5 {[%clk 0:00:39.7]} 27. Rf1 {[%clk 0:00:13.8]} 27... Ne4
{[%clk 0:00:38.4]} 28. Bh2 {[%clk 0:00:10]} 28... Bb5 {[%clk 0:00:31.5]} 29.
Rdf3 {[%clk 0:00:06]} 29... Bxf1 {[%clk 0:00:31.2]} 30. Rxf1 {[%clk 0:00:06]}
30... Rcd8 {[%clk 0:00:23.4]} 31. Qe3 {[%clk 0:00:05.4]} 31... Ng5 {[%clk
0:00:20.6]} 32. Qxc3 {[%clk 0:00:04.5]} 32... Rde8 {[%clk 0:00:18.4]} 33. Qc4+
{[%clk 0:00:04.2]} 33... Nf7 {[%clk 0:00:14.9]} 34. a4 {[%clk 0:00:04]} 34... g5
{[%clk 0:00:11.2]} 35. a5 {[%clk 0:00:02.9]} 35... gxf4 {[%clk 0:00:11.1]} 36.
Rxf4 {[%clk 0:00:01.3]} 36... Qd1+ {[%clk 0:00:10]} 37. Rf1 {[%clk 0:00:01.9]}
37... Qh5 {[%clk 0:00:08.3]} 38. Qb3 {[%clk 0:00:01.8]} 38... Re4 {[%clk
0:00:05.1]} 39. Qg3+ {[%clk 0:00:01.5]} 39... Rg4 {[%clk 0:00:04.8]} 40. Qf3
{[%clk 0:00:01.2]} 40... Qg6 {[%clk 0:00:04.7]} 0-1

[Event "*** SCC Grand Prix: Titled Tuesday Blitz"]
[Site "Chess.com"]
[Date "2020.06.09"]
[Round "2"]
[White "Anaj14"]
[Black "stolencandy13"]
[Result "0-1"]
[WhiteElo "2273"]
[BlackElo "2472"]
[TimeControl "180+1"]
[EndTime "9:18:48 PDT"]
[Termination "stolencandy13 won on time"]

1. Nf3 {[%clk 0:02:59.6]} 1... f5 {[%clk 0:02:58.8]} 2. g3 {[%clk 0:02:59.2]}
2... Nf6 {[%clk 0:02:56.6]} 3. Bg2 {[%clk 0:02:59.1]} 3... e6 {[%clk 0:02:55.7]}
4. O-O {[%clk 0:02:58.9]} 4... Be7 {[%clk 0:02:56.3]} 5. d3 {[%clk 0:02:57.9]}
5... O-O {[%clk 0:02:56.8]} 6. c3 {[%clk 0:02:56.7]} 6... d6 {[%clk 0:02:37.2]}
7. Nbd2 {[%clk 0:02:53.6]} 7... Nc6 {[%clk 0:02:30.4]} 8. e4 {[%clk 0:02:53.3]}
8... f4 {[%clk 0:02:26.1]} 9. d4 {[%clk 0:02:49.5]} 9... e5 {[%clk 0:02:21.9]}
10. Nb3 {[%clk 0:02:46.8]} 10... fxg3 {[%clk 0:02:17.3]} 11. fxg3 {[%clk
0:02:37.1]} 11... a5 {[%clk 0:02:04.4]} 12. Qd3 {[%clk 0:02:28.7]} 12... a4
{[%clk 0:01:56.1]} 13. Nbd2 {[%clk 0:02:28.4]} 13... exd4 {[%clk 0:01:56.5]} 14.
cxd4 {[%clk 0:02:25]} 14... d5 {[%clk 0:01:56.4]} 15. Ne5 {[%clk 0:02:14.6]}
15... dxe4 {[%clk 0:01:52.5]} 16. Nxc6 {[%clk 0:02:04.3]} 16... exd3 {[%clk
0:01:49]} 17. Nxd8 {[%clk 0:02:03.8]} 17... Rxd8 {[%clk 0:01:49]} 18. Nf3 {[%clk
0:01:58]} 18... Bg4 {[%clk 0:01:39.8]} 19. Be3 {[%clk 0:01:42.5]} 19... Nd5
{[%clk 0:01:36.3]} 20. Bf2 {[%clk 0:01:42.8]} 20... Bf6 {[%clk 0:01:33.9]} 21.
h3 {[%clk 0:01:40.5]} 21... Bxf3 {[%clk 0:01:32]} 22. Bxf3 {[%clk 0:01:40.4]}
22... c6 {[%clk 0:01:31.9]} 23. Rad1 {[%clk 0:01:38.9]} 23... Nb4 {[%clk
0:01:30.3]} 24. a3 {[%clk 0:01:37.4]} 24... Nc2 {[%clk 0:01:22.9]} 25. Rxd3
{[%clk 0:01:34.9]} 25... Nxd4 {[%clk 0:01:21.7]} 26. Bxd4 {[%clk 0:01:22.7]}
26... Bxd4+ {[%clk 0:01:11.3]} 27. Kg2 {[%clk 0:01:22.4]} 27... Bxb2 {[%clk
0:01:02]} 28. Rfd1 {[%clk 0:01:20]} 28... Rxd3 {[%clk 0:00:59.6]} 29. Rxd3
{[%clk 0:01:20.9]} 29... Rc8 {[%clk 0:00:49.8]} 30. Bd1 {[%clk 0:01:20.8]} 30...
b5 {[%clk 0:00:48.3]} 31. Kf3 {[%clk 0:01:20.1]} 31... Kf7 {[%clk 0:00:45.3]}
32. Rd7+ {[%clk 0:01:18.5]} 32... Ke6 {[%clk 0:00:44.5]} 33. Rb7 {[%clk
0:01:11.1]} 33... Bxa3 {[%clk 0:00:42.2]} 34. Ke4 {[%clk 0:01:11.8]} 34... Bb2
{[%clk 0:00:39.2]} 35. Bg4+ {[%clk 0:01:11.2]} 35... Kd6 {[%clk 0:00:35.9]} 36.
Bxc8 {[%clk 0:01:11.4]} 36... Kc5 {[%clk 0:00:31.6]} 37. Kd3 {[%clk 0:01:10]}
37... Be5 {[%clk 0:00:29.1]} 38. g4 {[%clk 0:01:08.8]} 38... a3 {[%clk
0:00:25.5]} 39. Be6 {[%clk 0:01:05.8]} 39... Kd6 {[%clk 0:00:22.3]} 40. Bg8
{[%clk 0:01:04.6]} 40... c5 {[%clk 0:00:22]} 41. Bxh7 {[%clk 0:01:01.2]} 41...
c4+ {[%clk 0:00:20.7]} 42. Ke4 {[%clk 0:00:53.8]} 42... a2 {[%clk 0:00:21.1]}
43. Rb6+ {[%clk 0:00:53.1]} 43... Kc5 {[%clk 0:00:20.2]} 44. Ra6 {[%clk
0:00:53]} 44... a1=Q {[%clk 0:00:20.4]} 45. Rxa1 {[%clk 0:00:53.1]} 45... Bxa1
{[%clk 0:00:21.3]} 46. Bg8 {[%clk 0:00:52.1]} 46... Bf6 {[%clk 0:00:21.2]} 47.
h4 {[%clk 0:00:51.2]} 47... Bxh4 {[%clk 0:00:20.8]} 48. Be6 {[%clk 0:00:16.7]}
48... Bf6 {[%clk 0:00:20]} 49. Kf5 {[%clk 0:00:14.6]} 49... b4 {[%clk
0:00:19.3]} 50. g5 {[%clk 0:00:15.5]} 50... Bd4 {[%clk 0:00:18.4]} 0-1